bitfinex-derivatives/quotes_BTCF0:USTF0_20251207
["timestamp","ask_amount","ask_price","bid_price","bid_amount"]
[1765078806744,0.0821028,89727.0,89726.0,0.02999281]
[1765078807145,0.05432,89725.0,89724.0,0.03015996]
[1765078808057,0.11409611,89725.0,89724.0,0.00016715]
[1765078808250,0.11448735,89725.0,89724.0,0.00016715]
[1765078808453,0.11448735,89725.0,89724.0,0.00116715]
[1765078809356,0.05432,89725.0,89724.0,0.00116715]
[1765078810357,0.0654642,89716.0,89715.0,0.3608]
[1765078810744,0.07096,89709.0,89708.0,0.02999281]
[1765078811048,0.0821051,89709.0,89707.0,0.02999281]
[1765078811451,0.0821051,89709.0,89707.0,0.0111453]
[1765078811652,0.0821051,89709.0,89707.0,0.40193811]
[1765078812149,0.0821051,89709.0,89708.0,0.002]
[1765078812555,0.0821051,89709.0,89707.0,0.3719453]
[1765078812753,0.0821051,89709.0,89707.0,0.3618]
[1765078812754,0.05479,89708.0,89707.0,0.3618]
[1765078814160,0.05479,89708.0,89707.0,0.3608]
[1765078814961,0.05679,89708.0,89707.0,0.3608]
[1765078815558,0.05579,89708.0,89707.0,0.3608]
[1765078815859,0.05479,89708.0,89707.0,0.3608]
[1765078817250,0.01664,89709.0,89708.0,0.0111452]
[1765078820454,0.04436,89709.0,89708.0,0.0111452]
[1765078820653,0.04436,89709.0,89708.0,0.0121452]
[1765078820851,0.07199,89709.0,89708.0,0.0121452]
[1765078822057,0.07199,89709.0,89708.0,0.0111452]
[1765078822262,0.07199,89709.0,89708.0,0.0121452]
[1765078823563,0.07199,89709.0,89708.0,0.0111452]
[1765078826464,0.0664952,89708.0,89707.0,0.3608]
[1765078830862,0.01664,89709.0,89708.0,0.0111452]
[1765078831766,0.04436,89709.0,89708.0,0.0111452]
[1765078831962,0.07199,89709.0,89708.0,0.0111452]
[1765078837363,0.07199,89709.0,89708.0,0.05104291]
[1765078839471,0.07199,89709.0,89708.0,0.0111452]
[1765078845377,0.07304,89709.0,89708.0,0.0111452]
[1765078846679,0.01664,89709.0,89708.0,0.0111452]
[1765078849287,0.01664,89715.0,89708.0,0.0111452]
[1765078849488,0.01664,89715.0,89713.0,0.06001081]
[1765078850280,0.04524,89715.0,89712.0,0.06001081]
[1765078850681,0.04724,89715.0,89712.0,0.06001081]
[1765078850879,0.04724,89715.0,89714.0,0.0111445]
[1765078851488,0.01964,89715.0,89714.0,0.07115531]
[1765078851782,0.01964,89715.0,89714.0,0.0111445]
[1765078852090,0.003,89715.0,89714.0,0.0111445]
[1765078852283,0.002,89715.0,89714.0,0.0111445]
[1765078852489,0.003,89715.0,89714.0,0.4411445]
[1765078853091,0.003,89715.0,89714.0,0.52108366]
[1765078853294,0.003,89715.0,89714.0,0.4411445]
[1765078855686,0.0016657,89715.0,89714.0,0.4411445]
[1765078856698,0.00016715,89717.0,89714.0,0.4411445]
[1765078856699,5e-08,89717.0,89714.0,0.5208445]
[1765078856994,5e-08,89717.0,89716.0,0.3608]
[1765078857195,5e-08,89717.0,89716.0,0.7808]
[1765078858588,0.01637,89739.0,89738.0,0.0111415]
[1765078858589,0.07499,89739.0,89738.0,0.0111415]
[1765078858789,0.07499,89739.0,89738.0,0.8890215]
[1765078860099,0.07499,89739.0,89738.0,0.8900215]
[1765078861101,0.07499,89739.0,89738.0,0.3618]
[1765078870895,0.07499,89739.0,89738.0,0.87876]
[1765078882222,0.07499,89739.0,89738.0,0.3618]
[1765078882423,0.07499,89739.0,89738.0,0.40169627]
[1765078884423,0.07499,89739.0,89738.0,0.3618]
[1765078900035,0.07499,89739.0,89738.0,0.3608]
[1765078900738,0.07499,89739.0,89738.0,0.3618]
[1765078902348,0.07499,89739.0,89738.0,0.39182444]
[1765078902642,0.07499,89739.0,89738.0,0.3618]
[1765078903943,0.07499,89739.0,89738.0,0.001]
[1765078904341,0.07499,89739.0,89738.0,0.03102252]
[1765078907137,0.07499,89739.0,89738.0,0.001]
[1765078909047,0.07499,89739.0,89736.0,0.04116272]
[1765078909241,0.07499,89739.0,89738.0,0.001]
[1765078909639,0.07499,89739.0,89736.0,0.04116272]
[1765078909848,0.07499,89739.0,89738.0,0.001]
[1765078914752,0.07499,89739.0,89738.0,0.3618]
[1765078919552,0.07499,89739.0,89738.0,0.001]
[1765078919856,0.07499,89739.0,89738.0,0.3618]
[1765078921259,0.04511,89739.0,89738.0,0.3618]
[1765078921448,0.07284,89739.0,89738.0,0.3618]
[1765078922058,0.01637,89739.0,89738.0,0.3618]
[1765078922848,0.01768,89742.0,89739.0,0.0111414]
[1765078923054,0.01768,89742.0,89741.0,0.0111411]
[1765078924457,0.01637,89744.0,89741.0,0.3719411]
[1765078924659,0.04473,89744.0,89741.0,0.4319745]
[1765078925262,0.04473,89744.0,89741.0,0.3719411]
[1765078925760,0.07246,89744.0,89741.0,0.3719411]
[1765078926562,0.05609,89742.0,89741.0,0.3719411]
[1765078934964,0.05609,89742.0,89741.0,0.8886211]
[1765078938770,0.07249,89742.0,89741.0,0.8886211]
[1765078941674,0.01637,89744.0,89741.0,0.8886211]
[1765078941975,0.07393,89744.0,89743.0,0.03998499]
[1765078942271,0.0001665,89747.0,89744.0,0.0111407]
[1765078942465,0.0001665,89747.0,89746.0,0.03998499]
[1765078943765,0.0001665,89747.0,89744.0,0.0711741]
[1765078944169,0.0001665,89747.0,89746.0,0.0711739]
[1765078944470,0.0011665,89747.0,89746.0,0.0711739]
[1765078944677,0.06582001,89755.0,89754.0,0.0111395]
[1765078944866,0.06582001,89755.0,89754.0,0.8886195]
[1765078945473,0.00826001,89755.0,89754.0,0.8886195]
[1765078946070,0.01026001,89755.0,89754.0,0.8886195]
[1765078946266,0.03994001,89755.0,89754.0,0.8886195]
[1765078946468,0.03994001,89755.0,89754.0,0.8996582]
[1765078946971,0.06782001,89755.0,89754.0,0.8996582]
[1765078947176,0.03994001,89755.0,89754.0,0.94374344]
[1765078947478,0.01026001,89755.0,89754.0,0.94374344]
[1765078949778,0.0164,89768.0,89765.0,0.0111381]
[1765078949779,0.0578385,89766.0,89765.0,0.0111381]
[1765078949980,0.0578385,89766.0,89765.0,0.3719381]
[1765078950677,0.0299585,89766.0,89765.0,0.3719381]
[1765078951063,0.0002785,89766.0,89765.0,0.7719381]
[1765078951269,0.05756,89782.0,89781.0,0.0111361]
[1765078951469,0.05756,89782.0,89781.0,0.8886961]
[1765078951962,0.05756,89782.0,89781.0,0.3608]
[1765078953272,0.05856,89782.0,89781.0,0.3608]
[1765078966082,0.05856,89782.0,89781.0,0.3719361]
[1765078972784,0.01651,89776.0,89773.0,0.3719371]
[1765078972994,0.05591,89774.0,89773.0,0.3719371]
[1765078978097,0.067047,89774.0,89773.0,0.3608]
[1765078978291,0.05591,89774.0,89773.0,0.3608]
[1765078979986,0.067047,89774.0,89773.0,0.3608]
[1765078981096,0.05591,89774.0,89773.0,0.3608]
[1765078990901,0.05655,89770.0,89769.0,0.3719376]
[1765078992007,0.0676875,89770.0,89769.0,0.3719376]
[1765078992412,0.05655,89770.0,89769.0,0.3719376]
[1765078993108,0.05655,89770.0,89769.0,0.3729376]
[1765078995311,0.05655,89770.0,89769.0,0.3618]
[1765078998618,0.05655,89770.0,89769.0,0.001]
[1765078998619,0.1166824,89770.0,89769.0,0.001]
[1765078998807,0.05655,89770.0,89769.0,0.001]
[1765078999414,0.11664251,89770.0,89769.0,0.001]
[1765078999612,0.05825,89759.0,89757.0,0.01130615]
[1765079000510,0.0693889,89759.0,89757.0,0.00016715]
[1765079001013,0.0693889,89759.0,89758.0,0.3618]
[1765079001514,0.0693889,89759.0,89758.0,0.3628]
[1765079002802,0.0693889,89759.0,89758.0,0.3608]
[1765079003008,0.0693889,89759.0,89758.0,0.3628]
[1765079003516,0.0693889,89759.0,89758.0,0.3618]
[1765079009116,0.0693889,89759.0,89758.0,0.3608]
[1765079009722,0.0693889,89759.0,89758.0,0.3618]
[1765079010224,0.0693889,89759.0,89758.0,0.3608]
[1765079012126,0.0693889,89759.0,89758.0,0.3618]
[1765079012523,0.0693889,89759.0,89758.0,0.3608]
[1765079015430,0.05825,89758.0,89757.0,0.00016715]
[1765079015629,0.05825,89743.0,89742.0,0.3608]
[1765079015824,0.05825,89743.0,89732.0,0.05985174]
[1765079015825,0.01677,89736.0,89733.0,0.07937518]
[1765079016023,0.01677,89736.0,89733.0,0.01111544]
[1765079016224,0.01677,89736.0,89735.0,0.0111419]
[1765079016525,0.04637,89736.0,89735.0,0.0111419]
[1765079018235,0.07502,89736.0,89735.0,0.0111419]
[1765079018434,0.07502,89736.0,89735.0,0.0131419]
[1765079018930,0.07502,89736.0,89735.0,0.0111419]
[1765079019138,0.07502,89736.0,89735.0,0.0141419]
[1765079020233,0.01677,89736.0,89735.0,0.0141419]
[1765079022037,0.01677,89742.0,89740.0,0.0111411]
[1765079022233,0.00016715,89744.0,89735.0,0.003]
[1765079022234,0.00016715,89744.0,89743.0,0.0111409]
[1765079024335,0.00016715,89744.0,89743.0,0.0131409]
[1765079024843,0.01724715,89744.0,89743.0,0.0111409]
[1765079025046,0.01724715,89744.0,89743.0,0.0151409]
[1765079025347,0.01724715,89744.0,89743.0,0.0171409]
[1765079025848,0.07418715,89744.0,89743.0,0.0171409]
[1765079026149,0.07418715,89744.0,89743.0,0.0161409]
[1765079027347,0.01724715,89744.0,89743.0,0.0161409]
[1765079027549,0.07418715,89744.0,89743.0,0.0131409]
[1765079027749,0.07418715,89744.0,89743.0,0.0161409]
[1765079028050,0.07418715,89744.0,89743.0,0.0151409]
[1765079028647,0.07418715,89744.0,89743.0,0.0141409]
[1765079028949,0.07418715,89744.0,89743.0,0.0161409]
[1765079031154,0.00016715,89744.0,89743.0,0.0161409]
[1765079031342,0.00016715,89744.0,89743.0,0.05404206]
[1765079031654,0.00016715,89744.0,89743.0,0.05604206]
[1765079032247,0.00016715,89744.0,89743.0,0.0161409]
[1765079033054,0.01724715,89744.0,89743.0,0.0161409]
[1765079033256,0.07418715,89744.0,89743.0,0.005]
[1765079033457,0.07418715,89744.0,89743.0,0.04498793]
[1765079033847,0.07418715,89744.0,89743.0,0.005]
[1765079034448,0.07418715,89744.0,89743.0,0.004]
[1765079034744,0.07418715,89744.0,89743.0,0.002]
[1765079035051,0.07418715,89744.0,89743.0,0.003]
[1765079035554,0.08532785,89744.0,89743.0,0.003]
[1765079036954,0.05579,89743.0,89742.0,0.371941]
[1765079038653,0.05579,89743.0,89742.0,0.373941]
[1765079039561,0.05579,89743.0,89742.0,0.374941]
[1765079040653,0.05579,89743.0,89742.0,0.371941]
[1765079040858,0.05579,89743.0,89742.0,0.374941]
[1765079042757,0.05579,89743.0,89742.0,0.3638]
[1765079044050,0.05579,89743.0,89742.0,0.3628]
[1765079044356,0.05579,89743.0,89742.0,0.3618]
[1765079045762,0.05579,89743.0,89742.0,0.3628]
[1765079046358,0.05579,89743.0,89742.0,0.3608]
[1765079046560,0.05579,89743.0,89742.0,0.3628]
[1765079046966,0.05579,89743.0,89742.0,0.3618]
[1765079047167,0.05579,89743.0,89742.0,0.3638]
[1765079047562,0.05579,89743.0,89742.0,0.3618]
[1765079047868,0.05579,89743.0,89742.0,0.3638]
[1765079048456,0.05579,89743.0,89742.0,0.3628]
[1765079048661,0.05579,89743.0,89742.0,0.3638]
[1765079052568,0.05579,89743.0,89742.0,0.3628]
[1765079052767,0.05579,89743.0,89742.0,0.3638]
[1765079057563,0.02726,89743.0,89742.0,0.3638]
[1765079058178,0.05528,89743.0,89742.0,0.3638]
[1765079063780,0.01724715,89744.0,89743.0,0.0111409]
[1765079064281,0.04628715,89744.0,89743.0,0.0111409]
[1765079064482,0.07430715,89744.0,89743.0,0.0111409]
[1765079064985,0.07430715,89744.0,89743.0,0.0121409]
[1765079065784,0.07430715,89744.0,89743.0,0.0141409]
[1765079066580,0.07430715,89744.0,89743.0,0.0131409]
[1765079066781,0.07430715,89744.0,89743.0,0.0141409]
[1765079067290,0.07430715,89744.0,89743.0,0.0121409]
[1765079067480,0.07430715,89744.0,89743.0,0.0151409]
[1765079068688,0.00016715,89744.0,89743.0,0.07499264]
[1765079068985,0.00016715,89744.0,89743.0,0.0151409]
[1765079069690,0.01637715,89744.0,89743.0,0.0151409]
[1765079069893,0.01637715,89744.0,89743.0,0.0111409]
[1765079070188,0.01637715,89744.0,89743.0,0.0161409]
[1765079071491,0.01637715,89744.0,89743.0,0.3769409]
[1765079071988,0.01637715,89744.0,89743.0,0.3779409]
[1765079072781,0.01637715,89744.0,89743.0,0.3759409]
[1765079072992,0.00016715,89744.0,89743.0,0.3779409]
[1765079076186,0.01637715,89744.0,89743.0,0.3779409]
[1765079076582,0.01637715,89744.0,89743.0,0.7387409]
[1765079085802,0.01637715,89744.0,89743.0,0.7367409]
[1765079086101,0.01637715,89744.0,89743.0,0.7387409]
[1765079086400,0.04552715,89744.0,89743.0,0.7387409]
[1765079087199,0.04552715,89744.0,89743.0,0.0171409]
[1765079087397,0.04552715,89744.0,89743.0,0.7387409]
[1765079087795,0.01637715,89744.0,89743.0,0.7387409]
[1765079087999,0.01637715,89744.0,89743.0,0.7367409]
[1765079088300,0.01637715,89744.0,89743.0,0.7387409]
[1765079088700,0.04552715,89744.0,89743.0,0.7387409]
[1765079089597,0.04552715,89744.0,89743.0,0.7367409]
[1765079089802,0.04552715,89744.0,89743.0,0.7387409]
[1765079089803,0.07444715,89744.0,89743.0,0.7387409]
[1765079091401,0.07444715,89744.0,89743.0,1.0887409]
[1765079091598,0.0111409,89743.0,89732.0,0.03999916]
[1765079091792,0.0111409,89743.0,89732.0,0.0111422]
[1765079091793,0.05807,89733.0,89732.0,0.0111422]
[1765079091991,0.07807,89733.0,89732.0,0.0111422]
[1765079092590,0.07807,89733.0,89732.0,0.0121422]
[1765079092998,0.07807,89733.0,89732.0,0.5289022]
[1765079093803,0.07807,89733.0,89732.0,0.0121422]
[1765079094103,0.07807,89733.0,89732.0,0.0141422]
[1765079095211,0.07807,89733.0,89732.0,0.0131422]
[1765079095400,0.07807,89733.0,89732.0,0.0141422]
[1765079096211,0.07807,89733.0,89732.0,0.0131422]
[1765079096408,0.07807,89733.0,89732.0,0.0111422]
[1765079097108,0.01722,89736.0,89732.0,0.0111422]
[1765079097109,0.04637,89736.0,89732.0,0.0111422]
[1765079097409,0.07529,89736.0,89734.0,0.011142]
[1765079098802,0.07529,89736.0,89734.0,0.013142]
[1765079100009,0.07529,89736.0,89734.0,0.015142]
[1765079100405,0.07529,89736.0,89734.0,0.07311182]
[1765079100605,0.07529,89736.0,89734.0,0.07511182]
[1765079101111,0.07529,89736.0,89734.0,0.07311182]
[1765079101311,0.07529,89736.0,89734.0,0.07511182]
[1765079102211,0.07529,89736.0,89735.0,0.51688]
[1765079103511,0.07529,89736.0,89735.0,0.51888]
[1765079104413,0.07529,89736.0,89735.0,0.51688]
[1765079104613,0.07529,89736.0,89735.0,0.52088]
[1765079104811,0.07529,89736.0,89735.0,0.88088]
[1765079105006,0.04478,89736.0,89735.0,0.88088]
[1765079105205,0.07275,89736.0,89735.0,0.94084982]
[1765079105404,0.07275,89736.0,89735.0,0.93884982]
[1765079105608,0.07275,89736.0,89735.0,0.94084982]
[1765079106111,0.07275,89736.0,89735.0,0.88088]
[1765079106304,0.01722,89736.0,89735.0,0.88088]
[1765079106510,0.01722,89740.0,89739.0,0.0111414]
[1765079106813,0.07190715,89744.0,89743.0,0.0111409]
[1765079107009,0.06351531,89744.0,89743.0,0.8888209]
[1765079107511,0.06351531,89744.0,89743.0,1.3188209]
[1765079107915,0.06351531,89744.0,89743.0,1.3208209]
[1765079109003,0.06351531,89744.0,89743.0,1.3218209]
[1765079109802,0.04462,89752.0,89751.0,0.0111399]
[1765079110006,0.07259,89752.0,89751.0,0.92875901]
[1765079110402,0.07259,89752.0,89751.0,0.41187901]
[1765079110809,0.49259,89752.0,89751.0,0.3719399]
[1765079111214,0.49259,89752.0,89751.0,0.3729399]
[1765079112119,0.09259,89752.0,89751.0,0.3729399]
[1765079113114,0.09259,89752.0,89751.0,0.3719399]
[1765079113319,0.09259,89752.0,89751.0,0.3729399]
[1765079116514,0.09259,89752.0,89751.0,0.3719399]
[1765079116719,0.09259,89752.0,89751.0,0.3729399]
[1765079117412,0.09259,89752.0,89751.0,0.0121399]
[1765079124426,0.07259,89752.0,89751.0,0.0121399]
[1765079125222,0.07259,89752.0,89751.0,0.05207901]
[1765079125418,0.09259,89752.0,89751.0,0.0121399]
[1765079127925,0.09259,89752.0,89751.0,0.001]
[1765079129131,0.09259,89752.0,89751.0,0.0121399]
[1765079129331,0.09259,89752.0,89751.0,0.0111399]
[1765079129525,0.09259,89752.0,89751.0,0.0121399]
[1765079130127,0.09259,89752.0,89751.0,0.0111399]
[1765079130326,0.09259,89752.0,89751.0,0.0121399]
[1765079135830,0.09259,89752.0,89751.0,0.001]
[1765079137234,0.09459,89752.0,89751.0,0.001]
[1765079138036,0.0677099,89751.0,89750.0,0.3608]
[1765079138236,0.0877099,89751.0,89750.0,0.3608]
[1765079140037,0.07657,89751.0,89750.0,0.37194]
[1765079140235,0.07857,89751.0,89750.0,0.37194]
[1765079140441,0.002,89751.0,89750.0,0.37194]
[1765079140631,0.02909,89751.0,89750.0,0.37194]
[1765079140827,0.002,89751.0,89750.0,0.37194]
[1765079141335,0.001,89751.0,89750.0,0.37194]
[1765079141741,0.01706,89752.0,89750.0,0.37194]
[1765079141940,0.01706,89752.0,89750.0,0.37294]
[1765079142635,0.01706,89752.0,89750.0,0.37394]
[1765079142939,0.04415,89752.0,89750.0,0.37394]
[1765079143239,0.04415,89752.0,89750.0,0.37294]
[1765079143442,0.04415,89752.0,89750.0,0.37394]
[1765079143642,0.04415,89752.0,89750.0,0.37294]
[1765079144239,0.04415,89752.0,89751.0,0.03995899]
[1765079144841,0.04415,89752.0,89750.0,0.37294]
[1765079145338,0.07322,89752.0,89751.0,0.001]
[1765079145944,0.07322,89752.0,89750.0,0.37194]
[1765079146140,0.07322,89752.0,89750.0,0.37294]
[1765079147745,0.07322,89752.0,89750.0,0.37194]
[1765079148044,0.07322,89752.0,89751.0,0.001]
[1765079148744,0.05626,89751.0,89750.0,0.37294]
[1765079149545,0.05626,89751.0,89750.0,0.37194]
[1765079150541,0.05626,89751.0,89750.0,0.37294]
[1765079151042,0.05626,89751.0,89750.0,0.37394]
[1765079156262,0.05626,89751.0,89750.0,0.89062]
[1765079161853,0.07626,89751.0,89750.0,0.37394]
[1765079167359,0.07626,89751.0,89743.0,0.400761]
[1765079167360,0.07551,89744.0,89743.0,0.400761]
[1765079167565,0.09551,89744.0,89743.0,0.3608]
[1765079168660,0.09651,89744.0,89743.0,0.3608]
[1765079169156,0.09551,89744.0,89743.0,0.3608]
[1765079169364,0.09651,89744.0,89743.0,0.3608]
[1765079169666,0.09651,89744.0,89743.0,0.3618]
[1765079170162,0.09651,89744.0,89743.0,0.3608]
[1765079176788,0.09651,89744.0,89743.0,0.3618]
[1765079176974,0.09651,89744.0,89743.0,0.3729409]
[1765079177575,0.09651,89744.0,89743.0,0.3719409]
[1765079179084,0.09551,89744.0,89743.0,0.3719409]
[1765079179285,0.09651,89744.0,89743.0,0.3719409]
[1765079179886,0.09651,89744.0,89743.0,0.0111409]
[1765079185287,0.09651,89744.0,89743.0,0.0121409]
[1765079185986,0.09551,89744.0,89743.0,0.0111409]
[1765079186187,0.09551,89744.0,89743.0,0.0121409]
[1765079186781,0.04647,89748.0,89747.0,0.0111404]
[1765079186983,0.0742,89748.0,89747.0,0.0111404]
[1765079188389,0.0752,89748.0,89747.0,0.0111404]
[1765079188784,0.0742,89748.0,89747.0,0.0111404]
[1765079189088,0.0742,89748.0,89747.0,0.0121404]
[1765079192689,0.07355,89752.0,89751.0,0.0111399]
[1765079192888,0.07355,89752.0,89751.0,0.43182785]
[1765079194093,0.07355,89752.0,89751.0,0.43282785]
[1765079194290,0.07355,89752.0,89751.0,0.8896199]
[1765079194291,0.01706,89752.0,89751.0,0.8896199]
[1765079194492,0.07355,89756.0,89755.0,0.0111394]
[1765079194696,0.09355,89756.0,89755.0,0.05105315]
[1765079195585,0.09455,89756.0,89755.0,0.05105315]
[1765079197395,0.09455,89756.0,89755.0,0.0111394]
[1765079202791,0.09455,89756.0,89753.0,0.03991375]
[1765079202996,0.05844,89752.0,89751.0,0.8885798]
[1765079203197,0.07844,89752.0,89751.0,0.8885798]
[1765079204507,0.07844,89752.0,89751.0,0.3719398]
[1765079204890,0.07844,89752.0,89751.0,0.3729398]
[1765079205595,0.07944,89752.0,89751.0,0.3729398]
[1765079206199,0.07944,89752.0,89751.0,0.3719398]
[1765079206400,0.07944,89752.0,89751.0,0.3729398]
[1765079208704,0.09703,89752.0,89751.0,0.3729398]
[1765079212306,0.09703,89752.0,89751.0,0.41285355]
[1765079214311,0.09703,89752.0,89751.0,0.3729398]
[1765079222414,0.09703,89752.0,89751.0,0.0121398]
[1765079222715,0.09703,89752.0,89751.0,0.3729398]
[1765079225410,0.09703,89752.0,89751.0,0.0121398]
[1765079225614,0.09703,89752.0,89751.0,0.3729398]
[1765079226314,0.09703,89752.0,89751.0,0.0121398]
[1765079226515,0.09703,89752.0,89751.0,0.3729398]
[1765079229418,0.06841,89752.0,89751.0,0.3729398]
[1765079229614,0.001,89752.0,89751.0,0.3729398]
[1765079230622,0.04468,89763.0,89762.0,0.0111385]
[1765079230822,0.06468,89763.0,89762.0,0.3719385]
[1765079231025,0.06468,89763.0,89762.0,0.4119221]
[1765079231314,0.06468,89763.0,89762.0,0.3719385]
[1765079231515,0.037,89763.0,89762.0,0.4119221]
[1765079231722,0.038,89763.0,89762.0,0.3719385]
[1765079231922,0.06578,89763.0,89762.0,0.3719385]
[1765079232121,0.09371,89763.0,89762.0,0.41189852]
[1765079232322,0.09671,89763.0,89762.0,0.41189852]
[1765079233217,0.09671,89763.0,89762.0,0.3719385]
[1765079234025,0.09571,89763.0,89762.0,0.3719385]
[1765079237329,0.09571,89763.0,89762.0,0.41189852]
[1765079238226,0.09571,89763.0,89762.0,0.3719385]
[1765079241930,0.05078,89763.0,89762.0,0.3719385]
[1765079243737,0.07871,89763.0,89762.0,0.3719385]
[1765079244131,0.07871,89763.0,89762.0,0.0111385]
[1765079244432,0.07871,89763.0,89762.0,0.3719385]
[1765079246530,0.05871,89763.0,89762.0,0.3719385]
[1765079246936,0.05871,89763.0,89762.0,0.41189852]
[1765079247936,0.003,89763.0,89762.0,0.41189852]
[1765079248335,0.003,89763.0,89762.0,0.92845852]
[1765079248538,0.003,89763.0,89762.0,0.8884985]
[1765079250437,0.05871,89763.0,89762.0,0.8884985]
[1765079256540,0.05871,89763.0,89762.0,0.5276985]
[1765079256843,0.05871,89763.0,89762.0,0.8884985]
[1765079258243,0.05871,89763.0,89762.0,0.9484739]
[1765079259251,0.05871,89763.0,89762.0,0.94843993]
[1765079259746,0.003,89763.0,89762.0,0.94843993]
[1765079260048,0.003,89763.0,89762.0,0.8884985]
[1765079260851,0.03078,89763.0,89762.0,0.8884985]
[1765079261147,0.07535,89763.0,89762.0,0.8884985]
[1765079262456,0.003,89763.0,89762.0,0.8884985]
[1765079266045,0.003,89763.0,89762.0,1.3084985]
[1765079268047,0.04405,89769.0,89768.0,0.0111378]
[1765079268254,0.04405,89769.0,89768.0,0.5276578]
[1765079269658,0.04805,89769.0,89768.0,0.5276578]
[1765079270172,0.04905,89769.0,89768.0,0.5276578]
[1765079271567,0.02183,89769.0,89768.0,0.8884578]
[1765079272173,0.04905,89769.0,89768.0,0.8884578]
[1765079272974,0.07658,89769.0,89768.0,0.8884578]
[1765079273974,0.07658,89769.0,89768.0,0.3719378]
[1765079274170,0.07658,89769.0,89768.0,0.8884578]
[1765079278375,0.09658,89769.0,89768.0,0.8884578]
[1765079281077,0.09658,89769.0,89768.0,0.3719378]
[1765079281376,0.09658,89769.0,89768.0,0.8884178]
[1765079287483,0.09658,89769.0,89768.0,0.3719378]
[1765079294290,0.09658,89769.0,89768.0,0.0111378]
[1765079294585,0.09658,89769.0,89768.0,0.3719378]
[1765079301490,0.09658,89769.0,89768.0,0.40079575]
[1765079301794,0.09658,89769.0,89768.0,0.3719378]
[1765079320707,0.09658,89769.0,89768.0,0.3608]
[1765079345726,0.05873,89767.0,89766.0,0.0111379]
[1765079345921,0.07873,89767.0,89766.0,0.0111379]
[1765079347526,0.07973,89767.0,89766.0,0.0111379]
[1765079347921,0.08173,89767.0,89766.0,0.0111379]
[1765079386361,0.08173,89767.0,89766.0,0.3719379]
[1765079388652,0.08173,89767.0,89766.0,0.3608]
[1765079394662,0.023,89767.0,89766.0,0.3608]
[1765079394864,0.07806,89767.0,89766.0,0.3608]
[1765079399467,0.07806,89767.0,89766.0,0.40079575]
[1765079400564,0.07806,89767.0,89766.0,0.3608]
[1765079404867,0.05046,89767.0,89766.0,0.3608]
[1765079405065,0.023,89767.0,89766.0,0.3608]
[1765079405272,0.05205,89767.0,89766.0,0.3608]
[1765079405963,0.08087,89767.0,89766.0,0.3608]
[1765079406162,0.05205,89767.0,89766.0,0.3608]
[1765079406461,0.05105,89767.0,89766.0,0.3628]
[1765079406660,0.04905,89767.0,89766.0,0.3648]
[1765079407371,0.04905,89767.0,89766.0,0.40474446]
[1765079409161,0.07787,89767.0,89766.0,0.40474446]
[1765079410170,0.07787,89767.0,89766.0,0.3648]
[1765079412261,0.04905,89767.0,89766.0,0.3648]
[1765079412462,0.07606,89767.0,89766.0,0.3648]
[1765079412971,0.01665,89768.0,89767.0,0.0111379]
[1765079413167,0.04577,89768.0,89767.0,0.0111379]
[1765079413364,0.06577,89768.0,89767.0,0.0111379]
[1765079413569,0.09278,89768.0,89767.0,0.0111379]
[1765079414371,0.09278,89768.0,89767.0,0.0131379]
[1765079414571,0.09278,89768.0,89767.0,0.0151379]
[1765079423773,0.09278,89768.0,89767.0,0.7367379]
[1765079428083,0.09278,89768.0,89767.0,0.79666368]
[1765079429878,0.09278,89768.0,89767.0,0.07506368]
[1765079430085,0.09278,89768.0,89767.0,0.79666368]
[1765079431785,0.04577,89768.0,89767.0,0.7367379]
[1765079433882,0.05613,89789.0,89788.0,0.0111353]
[1765079434086,0.07613,89789.0,89788.0,0.0111353]
[1765079435088,0.07813,89789.0,89788.0,0.0111353]
[1765079435689,0.05913,89789.0,89788.0,0.0111353]
[1765079436775,0.07913,89789.0,89788.0,0.0111353]
[1765079437280,0.07913,89789.0,89788.0,0.5274953]
[1765079438483,0.07913,89789.0,89788.0,0.0111353]
[1765079447595,0.05786,89788.0,89787.0,0.3269353]
[1765079447792,0.07786,89788.0,89787.0,0.3380707]
[1765079449000,0.07886,89788.0,89787.0,0.3380707]
[1765079449496,0.08086,89788.0,89787.0,0.3380707]
[1765079449699,0.08086,89788.0,89787.0,0.3269353]
[1765079450194,0.08086,89788.0,89782.0,0.0111359]
[1765079450195,0.05058,89783.0,89782.0,0.0111359]
[1765079450498,0.07058,89783.0,89782.0,0.0111359]
[1765079453092,0.07158,89783.0,89782.0,0.0111359]
[1765079454193,0.07158,89783.0,89782.0,0.0410759]
[1765079457196,0.07158,89783.0,89782.0,0.0695359]
[1765079457904,0.05058,89781.0,89780.0,0.36096715]
[1765079458100,0.07058,89781.0,89780.0,0.36096715]
[1765079458702,0.07058,89781.0,89780.0,0.39090715]
[1765079459603,0.07058,89781.0,89780.0,0.41936715]
[1765079461594,0.07058,89781.0,89780.0,0.36096715]
[1765079462106,0.07058,89781.0,89780.0,0.38929715]
[1765079463102,0.07058,89781.0,89780.0,0.41630715]
[1765079468305,0.07058,89781.0,89780.0,0.38929715]
[1765079469109,0.07058,89781.0,89780.0,0.41630715]
[1765079471711,0.07058,89781.0,89780.0,0.00016715]
[1765079473011,0.07258,89781.0,89780.0,0.00016715]
[1765079473607,0.07358,89781.0,89780.0,0.00016715]
[1765079474312,0.07358,89781.0,89780.0,0.05727715]
[1765079474906,0.07158,89781.0,89780.0,0.05727715]
[1765079475211,0.07358,89781.0,89780.0,0.05727715]
[1765079476404,0.07258,89781.0,89780.0,0.05727715]
[1765079476605,0.07158,89781.0,89780.0,0.05727715]
[1765079481220,0.07158,89781.0,89780.0,0.02982715]
[1765079481611,0.07158,89781.0,89780.0,0.05727715]
[1765079483015,0.07158,89781.0,89780.0,0.02982715]
[1765079484718,0.07158,89781.0,89780.0,0.05727715]
[1765079485115,0.07158,89781.0,89780.0,0.07443715]
[1765079509134,0.13167251,89781.0,89780.0,0.07443715]
[1765079517536,0.07158,89781.0,89780.0,0.07443715]
[1765079560368,0.58786,89781.0,89780.0,0.07443715]
[1765079585796,0.58786,89781.0,89780.0,0.00016715]
[1765079587994,0.05058,89776.0,89775.0,0.40719]
[1765079588193,0.07058,89776.0,89775.0,0.39017]